bitfinex-derivatives/quotes_ETHF0:USTF0_20250430
["timestamp","ask_amount","ask_price","bid_price","bid_amount"]
[1745998580615,3.66228453,1798.4,1798.3,15.98390765]
[1745998581114,4.77407453,1798.5,1798.4,1.11182]
[1745998581316,3.66228453,1798.5,1798.4,11.86042765]
[1745998581514,4.77403453,1798.5,1798.4,11.86042765]
[1745998581708,3.66228453,1798.5,1798.4,11.86042765]
[1745998581911,3.66228453,1798.5,1798.4,16.18004765]
[1745998582110,3.66228453,1798.5,1798.4,20.00804765]
[1745998582816,3.66228453,1798.5,1798.4,23.71004765]
[1745998583012,3.66228453,1798.5,1798.4,64.51004765]
[1745998585318,1.11174,1798.6,1798.5,1.11175]
[1745998585517,1.11174,1798.6,1798.5,12.94807765]
[1745998585714,1.11167,1798.7,1798.6,1.11168]
[1745998586018,1.11167,1798.7,1798.6,12.14080765]
[1745998586215,1.11161,1798.8,1798.7,1.11162]
[1745998586416,1.11161,1798.8,1798.7,12.95364765]
[1745998586718,1.11161,1798.8,1798.7,2.4769]
[1745998587213,1.11161,1798.8,1798.7,6.3049]
[1745998587713,1.11161,1798.8,1798.7,15.67002765]
[1745998589015,3.66228453,1799.1,1798.7,26.65682765]
[1745998589214,3.66228453,1799.1,1799.0,10.47657765]
[1745998589516,4.77362453,1799.2,1799.0,10.47657765]
[1745998589717,4.77362453,1799.2,1799.1,11.09072765]
[1745998589917,4.77362453,1799.2,1799.1,12.20210765]
[1745998590118,4.77362453,1799.2,1799.1,2.83698]
[1745998590924,4.77362453,1799.2,1799.1,1.7256]
[1745998591613,6.40502453,1799.2,1799.1,1.7256]
[1745998592219,4.77362453,1799.2,1799.1,2.83698]
[1745998592409,3.66228453,1799.2,1799.1,12.20210765]
[1745998592613,3.66228453,1799.2,1799.1,13.01910765]
[1745998592815,3.66228453,1799.2,1799.1,18.01910765]
[1745998593614,3.66228453,1799.2,1799.1,21.22690765]
[1745998594820,7.32456906,1799.5,1799.4,1.1112]
[1745998595020,7.32456906,1799.5,1799.4,17.38412765]
[1745998595409,7.32456906,1799.5,1799.4,18.21972765]
[1745998595614,4.76981009,1799.6,1799.5,1.11114]
[1745998595822,3.65873009,1799.6,1799.5,12.18776765]
[1745998596323,3.65873009,1799.6,1799.5,16.85356765]
[1745998597321,3.65873009,1799.6,1799.5,15.74242765]
[1745998597620,4.76981009,1799.6,1799.5,3.828]
[1745998597821,9.76981009,1799.6,1799.5,3.828]
[1745998598021,12.21131009,1799.6,1799.5,3.828]
[1745998598219,1.11126,1799.3,1799.2,3.2078]
[1745998598422,1.11126,1799.3,1799.2,12.57292765]
[1745998598621,1.11126,1799.3,1799.2,15.36054765]
[1745998599127,1.11126,1799.3,1799.2,19.18854765]
[1745998600027,1.11126,1799.3,1799.2,18.07722765]
[1745998600232,1.11126,1799.3,1799.2,8.7121]
[1745998600724,1.11126,1799.3,1799.2,9.82342]
[1745998603121,2.77094,1799.4,1799.2,9.82342]
[1745998603321,2.77094,1799.4,1799.3,1.5835]
[1745998604324,2.77094,1799.4,1799.3,2.69476]
[1745998604526,1.11119,1799.5,1799.4,1.1112]
[1745998604728,1.11119,1799.5,1799.4,12.05982765]
[1745998605226,1.11119,1799.5,1799.4,15.88782765]
[1745998605827,0.8438,1799.6,1799.5,1.11114]
[1745998606028,0.8438,1799.6,1799.5,12.05976765]
[1745998606230,0.8438,1799.6,1799.5,6.52264]
[1745998606526,1.95488,1799.6,1799.5,6.52264]
[1745998606724,0.8438,1799.6,1799.5,6.52264]
[1745998606926,1.11103,1799.7,1799.6,1.11105]
[1745998607122,9.0698,1799.8,1799.6,12.10916765]
[1745998607123,10.1808,1799.8,1799.6,12.10916765]
[1745998607628,4.3188,1799.8,1799.7,1.633]
[1745998607929,6.04626,1799.9,1799.5,4.93908]
[1745998608131,1.11101,1799.7,1799.6,12.10920765]
[1745998608531,1.6608,1799.8,1799.7,1.11101]
[1745998608725,2.77179,1799.8,1799.7,10.99812765]
[1745998608926,2.77179,1799.8,1799.7,1.633]
[1745998609133,2.77179,1799.8,1799.7,5.461]
[1745998609431,1.6082,1799.9,1799.7,15.93713765]
[1745998609630,2.71909,1799.9,1799.8,11.10582765]
[1745998610130,2.71909,1799.9,1799.8,5.5687]
[1745998611134,2.71909,1799.9,1799.8,6.67965]
[1745998611331,2.71909,1799.9,1799.8,5.5687]
[1745998611938,2.71909,1799.9,1799.8,14.93382765]
[1745998612234,2.71909,1799.9,1799.8,16.04477765]
[1745998612426,2.71909,1799.9,1799.8,14.93382765]
[1745998613730,2.71909,1799.9,1799.8,3.828]
[1745998613930,5.92689,1799.9,1799.8,3.828]
[1745998614138,2.71909,1799.9,1799.8,3.828]
[1745998614638,10.92689,1799.9,1799.8,3.828]
[1745998614830,1.11108,1799.6,1799.5,5.4111]
[1745998615231,1.11108,1799.6,1799.5,5.5421]
[1745998615732,1.92578,1799.6,1799.5,3.828]
[1745998615931,5.13358,1799.6,1799.5,3.828]
[1745998616239,1.1112,1799.4,1799.3,1.5961]
[1745998616736,1.1112,1799.4,1799.3,10.96122765]
[1745998616938,2.6999,1799.4,1799.3,10.96122765]
[1745998617141,2.6999,1799.4,1799.3,14.78922765]
[1745998618132,2.6999,1799.4,1799.3,3.828]
[1745998618633,5.9077,1799.4,1799.3,3.828]
[1745998619141,1.11132,1799.2,1799.1,1.6112]
[1745998619638,1.11132,1799.2,1799.1,10.97632765]
[1745998620331,2.79602,1799.2,1799.1,10.97632765]
[1745998620737,0.8124,1799.5,1799.1,10.97632765]
[1745998620938,1.11124,1799.4,1799.2,2.473]
[1745998621240,1.11114,1799.5,1799.4,9.36512765]
[1745998621437,1.11114,1799.5,1799.4,10.47632765]
[1745998621637,1.11114,1799.5,1799.4,12.14672765]
[1745998622144,1.11108,1799.6,1799.5,1.11114]
[1745998622441,1.11108,1799.6,1799.5,11.91062765]
[1745998623240,1.11108,1799.6,1799.5,15.73862765]
[1745998626243,1.11108,1799.6,1799.5,16.84976765]
[1745998626741,1.11108,1799.6,1799.5,15.73862765]
[1745998627140,1.11108,1799.6,1799.5,17.69906765]
[1745998627835,0.8113,1799.8,1799.5,17.69906765]
[1745998628139,1.111,1799.8,1799.7,9.36512765]
[1745998629035,1.11101,1799.7,1799.6,1.6957]
[1745998629235,1.11101,1799.7,1799.6,11.06082765]
[1745998630340,1.97171,1799.7,1799.6,11.06082765]
[1745998631944,0.8607,1799.7,1799.5,7.0358]
[1745998632144,1.11132,1799.2,1799.1,3.2078]
[1745998632342,1.11126,1799.3,1799.2,9.36512765]
[1745998632845,1.11132,1799.2,1799.1,1.6768]
[1745998633233,1.11132,1799.2,1799.1,11.04192765]
[1745998634746,1.1113,1799.3,1799.1,12.15327765]
[1745998635043,1.1113,1799.3,1799.2,12.16404765]
[1745998635743,1.1113,1799.3,1799.2,11.05272765]
[1745998636146,1.1113,1799.3,1799.2,12.16404765]
[1745998636348,1.1113,1799.3,1799.2,1.6876]
[1745998637343,1.9225,1799.3,1799.2,1.6876]
[1745998640248,21.33528,1799.3,1798.8,3.2078]
[1745998640451,1.11157,1798.8,1798.7,1.6509]
[1745998640953,1.11157,1798.8,1798.7,11.01602765]
[1745998641555,1.11157,1798.8,1798.7,12.12765765]
[1745998641748,1.11157,1798.8,1798.7,11.01602765]
[1745998644860,1.11157,1798.8,1798.7,1.6509]
[1745998645257,1.93037,1798.8,1798.7,1.6509]
[1745998645854,3.57757,1798.8,1798.7,1.6509]
[1745998646661,7.466,1798.8,1798.4,3.2078]
[1745998646864,1.11169,1798.6,1798.5,1.5892]
[1745998647563,2.75889,1798.6,1798.5,1.5892]
[1745998649467,1.11169,1798.6,1798.5,10.95432765]
[1745998649765,0.8188,1798.8,1798.5,12.92924765]
[1745998649965,1.11163,1798.7,1798.6,1.6539]
[1745998650564,3.58773,1798.7,1798.6,1.6539]
[1745998651466,1.92773,1798.7,1798.6,1.6539]
[1745998652861,1.92773,1798.7,1798.6,11.01902765]
[1745998653269,1.11163,1798.7,1798.6,12.13071765]
[1745998653669,1.11163,1798.7,1798.6,11.01902765]
[1745998654566,1.11163,1798.7,1798.6,12.13071765]
[1745998654767,1.11163,1798.7,1798.6,15.33851765]
[1745998654961,1.11163,1798.7,1798.6,14.22682765]
[1745998657469,1.11162,1798.8,1798.6,14.22682765]
[1745998657667,1.11153,1798.9,1798.8,1.11157]
[1745998657871,1.11142,1799.1,1798.8,12.57292765]
[1745998658066,1.11142,1799.1,1799.0,9.36512765]
[1745998658568,1.11142,1799.1,1799.0,11.05012765]
[1745998659073,5.49138951,1799.2,1799.0,11.05012765]
[1745998659269,6.60270951,1799.2,1799.1,11.91552765]
[1745998660473,1.11132,1799.2,1799.1,11.91552765]
[1745998664277,1.1113,1799.3,1799.1,13.02686765]
[1745998664477,1.1113,1799.3,1799.2,10.96942765]
[1745998664778,1.11124,1799.4,1799.2,16.13204765]
[1745998665076,1.11124,1799.4,1799.3,10.96942765]
[1745998666478,1.11124,1799.4,1799.3,12.08068765]
[1745998666675,1.11116,1799.5,1799.4,1.1112]
[1745998666977,6.60249951,1799.6,1799.5,9.36512765]
[1745998667277,6.60249951,1799.6,1799.5,11.03222765]
[1745998667473,6.60249951,1799.6,1799.5,12.77282765]
[1745998667674,1.11111,1799.6,1799.5,12.77282765]
[1745998668272,1.11111,1799.6,1799.5,13.88396765]
[1745998668472,1.11111,1799.6,1799.5,12.77282765]
[1745998669074,3.2078,1799.7,1799.5,13.88396765]
[1745998669275,4.31881,1799.7,1799.6,11.10572765]
[1745998671974,1.11101,1799.7,1799.6,11.10572765]
[1745998675379,1.11101,1799.7,1799.2,3.2078]
[1745998675380,1.11126,1799.3,1799.2,6.8628]
[1745998675680,1.11126,1799.3,1799.2,8.5309]
[1745998675879,1.11126,1799.3,1799.2,17.89602765]
[1745998676685,1.11126,1799.3,1799.2,14.24102765]
[1745998676982,1.11126,1799.3,1799.2,15.86412765]
[1745998679084,1.11126,1799.3,1799.2,1.6231]
[1745998679383,1.94876,1799.3,1799.2,1.6231]
[1745998680483,1.11126,1799.3,1799.2,1.6231]
[1745998680683,1.11126,1799.3,1799.2,12.09954765]
[1745998680884,1.11126,1799.3,1799.2,10.98822765]
[1745998681286,1.11126,1799.3,1799.2,11.82302765]
[1745998683786,1.11126,1799.3,1799.2,1.6231]
[1745998692691,1.11151,1798.9,1798.8,3.655]
[1745998692895,3.2078,1798.9,1798.8,9.36512765]
[1745998693082,4.31931,1798.9,1798.8,9.36512765]
[1745998693389,4.31931,1798.9,1798.8,11.04332765]
[1745998695891,4.31931,1798.9,1798.8,1.6782]
[1745998696092,6.93851,1798.9,1798.8,1.6782]
[1745998700199,1.11163,1798.7,1798.6,0.8538]
[1745998700898,1.11163,1798.7,1798.6,10.21892765]
[1745998701097,1.11169,1798.6,1798.5,4.0334]
[1745998701298,1.92709,1798.6,1798.5,4.0334]
[1745998701493,1.11169,1798.6,1798.5,13.39852765]
[1745998701898,1.11169,1798.6,1798.5,15.08212765]
[1745998702601,1.11169,1798.6,1798.5,16.19387765]
[1745998702803,1.11169,1798.6,1798.5,15.08212765]
[1745998704701,1.11169,1798.6,1798.5,16.19387765]
[1745998706295,13.597,1798.9,1798.5,20.08212765]
[1745998706296,12.6918,1798.9,1798.5,20.08212765]
[1745998706599,10.18136,1798.9,1798.8,9.36512765]
[1745998707109,10.18136,1798.9,1798.8,11.11132765]
[1745998707292,9.0698,1798.9,1798.8,12.22289765]
[1745998707600,5.49138951,1799.1,1799.0,1.11145]
[1745998707797,9.81054951,1799.2,1799.0,10.47651765]
[1745998707999,9.81054951,1799.2,1799.1,11.11132765]
[1745998709300,5.49138951,1799.2,1799.1,15.43050765]
[1745998709507,5.49138951,1799.2,1799.1,20.43050765]
[1745998712307,1.1112,1799.4,1799.3,1.11126]
[1745998712502,1.1112,1799.4,1799.3,13.68418765]
[1745998712708,6.8298,1799.7,1799.4,1.11119]
[1745998712907,1.11113,1799.6,1799.5,11.10322765]
[1745998715118,1.11113,1799.6,1799.5,12.21436765]
[1745998715408,1.11113,1799.6,1799.5,11.10322765]
[1745998715806,1.11113,1799.6,1799.5,12.21436765]
[1745998716107,4.73306,1799.7,1799.5,12.21436765]
[1745998716308,4.73306,1799.7,1799.6,11.03232765]
[1745998716511,4.73306,1799.7,1799.6,1.6672]
[1745998718008,1.11106,1799.7,1799.6,1.6672]
[1745998723715,1.11106,1799.7,1799.6,2.77828]
[1745998724011,1.11106,1799.7,1799.6,11.03232765]
[1745998728417,8.84236407,1800.0,1799.6,19.24012765]
[1745998728621,4.31867,1800.0,1799.9,9.36512765]
[1745998729021,4.31867,1800.0,1799.9,12.98171765]
[1745998729519,1.11087,1800.0,1799.9,11.87082765]
[1745998730523,1.11087,1800.0,1799.9,12.98171765]
[1745998732331,3.66839407,1800.1,1800.0,1.11083]
[1745998732526,3.66839407,1800.1,1800.0,11.80212765]
[1745998732527,1.11077,1800.1,1800.0,11.80212765]
[1745998732821,1.11077,1800.1,1800.0,12.91293765]
[1745998733011,1.11077,1800.1,1800.0,11.80212765]
[1745998733214,1.11077,1800.1,1800.0,12.91295765]
[1745998733423,1.11077,1800.1,1800.0,11.80212765]
[1745998733920,1.11077,1800.1,1800.0,12.91295765]
[1745998735127,1.94643,1800.2,1800.0,11.80212765]
[1745998735324,1.11073,1800.2,1800.1,11.00172765]
[1745998735526,1.11073,1800.2,1800.1,12.11249765]
[1745998736423,3.66839407,1800.4,1800.1,16.00172765]
[1745998736628,4.77900407,1800.4,1800.3,12.57292765]
[1745998736815,4.77900407,1800.4,1800.3,9.36512765]
[1745998737020,4.77900407,1800.4,1800.3,10.95692765]
[1745998737320,1.11061,1800.4,1800.3,10.95692765]
[1745998737829,1.92661,1800.4,1800.3,10.95692765]
[1745998738727,1.92661,1800.4,1800.3,1.5918]
[1745998741618,3.62361,1800.4,1800.3,1.5918]
[1745998744432,1.11061,1800.4,1800.3,14.16472765]
[1745998744629,1.11057,1800.5,1800.4,1.11058]
[1745998744926,1.11057,1800.5,1800.4,0.8525]
[1745998745126,1.11057,1800.5,1800.4,12.12470765]
[1745998745528,2.454,1800.7,1800.4,12.12466765]
[1745998745731,1.11052,1800.6,1800.5,9.36512765]
[1745998751238,1.11058,1800.4,1800.3,3.2078]
[1745998752134,1.11064,1800.3,1800.2,3.606]
[1745998752340,1.11064,1800.3,1800.2,12.97112765]
[1745998753035,2.4589,1800.4,1800.1,4.0568]
[1745998753036,1.1107,1800.2,1800.1,3.2078]
[1745998753231,1.9373,1800.2,1800.1,9.36512765]
[1745998753436,1.11077,1800.1,1800.0,0.8366]
[1745998753631,2.75307,1800.1,1800.0,9.36512765]
[1745998754540,1.11089,1799.9,1799.8,4.4413]
[1745998755034,1.11089,1799.9,1799.8,13.80642765]
[1745998755740,1.93677,1800.0,1799.8,14.91734765]
[1745998755942,1.11087,1800.0,1799.9,12.57292765]
[1745998756237,1.11078,1800.1,1799.9,12.57292765]
[1745998756439,1.11078,1800.1,1800.0,1.11083]
[1745998756629,4.31855,1800.2,1800.0,10.47595765]
[1745998756831,4.31855,1800.2,1800.1,10.17222765]
[1745998757031,1.11075,1800.2,1800.1,11.02582765]
[1745998757742,1.11075,1800.2,1800.1,12.13659765]
[1745998758340,1.11069,1800.3,1800.2,1.1107]
[1745998758736,1.11069,1800.3,1800.2,10.47582765]
[1745998759541,4.77902407,1800.4,1800.3,1.11064]
[1745998759743,3.66839407,1800.4,1800.3,11.10022765]
[1745998759937,4.77897407,1800.4,1800.3,12.21086765]
[1745998760542,4.77897407,1800.4,1800.3,11.10022765]
[1745998762035,1.1107,1800.2,1800.1,3.2078]
[1745998762239,1.11077,1800.1,1800.0,1.6128]
[1745998762641,1.11077,1800.1,1800.0,10.97792765]
[1745998762841,1.11077,1800.1,1800.0,12.08875765]
[1745998763442,1.11077,1800.1,1800.0,10.97792765]
[1745998764347,1.11077,1800.1,1800.0,12.08875765]
[1745998764542,1.11077,1800.1,1800.0,10.97792765]
[1745998768344,1.11075,1800.2,1800.1,1.11076]
[1745998768544,1.11075,1800.2,1800.1,7.71256]
[1745998768845,1.11075,1800.2,1800.1,15.96692765]
[1745998771445,1.11075,1800.2,1800.1,17.07769765]
[1745998771842,1.11068,1800.3,1800.2,1.11068]
[1745998772252,1.11068,1800.3,1800.2,10.47580765]
[1745998772751,1.11063,1800.4,1800.3,1.11062]
[1745998773250,1.11063,1800.4,1800.3,10.47574765]
[1745998773549,1.11063,1800.4,1800.3,9.36512765]
[1745998777847,1.11063,1800.4,1800.3,10.47576765]
[1745998778444,2.77687,1800.2,1800.0,3.2078]
[1745998778649,1.11089,1799.9,1799.8,4.8075]
[1745998778837,1.11089,1799.9,1799.8,5.91845]
[1745998779042,1.11089,1799.9,1799.8,15.28357765]
[1745998779250,1.11089,1799.9,1799.8,22.68295098]
[1745998779448,1.11089,1799.9,1799.8,21.57200098]
[1745998780149,1.11089,1799.9,1799.8,22.68295098]
[1745998781048,1.11087,1800.0,1799.9,1.11089]
[1745998781239,1.11087,1800.0,1799.9,10.47601765]
[1745998783953,1.93252,1800.1,1800.0,1.11083]
[1745998784148,3.66839407,1800.2,1800.1,1.11077]
[1745998784453,4.77909407,1800.2,1800.1,11.31849765]
[1745998784950,4.77909407,1800.2,1800.1,10.20772765]
[1745998786456,1.1107,1800.2,1800.1,10.20772765]
[1745998789861,1.1107,1800.2,1800.1,11.92182765]
[1745998791668,1.1107,1800.2,1800.1,13.03259765]
[1745998793367,1.1107,1800.2,1800.1,12.18999765]
[1745998793571,1.1107,1800.2,1800.1,11.07922765]
[1745998798174,1.1107,1800.2,1800.1,12.18999765]
[1745998798375,1.11068,1800.3,1800.2,1.11069]
[1745998798672,4.77907407,1800.3,1800.2,5.97199]
[1745998798872,4.77907407,1800.3,1800.2,14.22642765]
[1745998799778,4.77907407,1800.3,1800.2,15.33712765]
[1745998799971,4.77907407,1800.3,1800.2,14.22642765]
[1745998802081,4.77907407,1800.3,1800.2,11.01862765]
[1745998802283,1.11077,1800.1,1800.0,4.31858]
[1745998802482,1.11077,1800.1,1800.0,5.91288]
[1745998802683,1.11077,1800.1,1800.0,15.27800765]
[1745998803584,1.11077,1800.1,1800.0,14.16722765]
[1745998806284,1.11077,1800.1,1800.0,15.27805765]
[1745998808384,1.11074,1800.2,1800.1,1.11073]
[1745998808881,1.11074,1800.2,1800.1,10.47585765]
[1745998809688,1.11074,1800.2,1800.1,12.12945765]
[1745998810886,1.11074,1800.2,1800.1,11.01872765]
[1745998811687,1.11083,1800.0,1799.9,3.605]
[1745998811888,1.11089,1799.9,1799.8,4.9064]
[1745998812088,1.11101,1799.7,1799.6,11.84627333]
[1745998812283,1.11101,1799.7,1799.6,22.06710098]
[1745998812686,1.11101,1799.7,1799.6,23.17818098]
[1745998813089,1.662,1799.8,1799.7,1.11101]
[1745998813389,1.11091,1799.9,1799.8,1.11092]
[1745998813786,1.11091,1799.9,1799.8,10.47604765]
[1745998814793,1.11091,1799.9,1799.8,9.36512765]
[1745998814995,4.77930407,1799.9,1799.8,9.36512765]
[1745998815196,1.11095,1799.8,1799.7,3.2078]
[1745998815396,3.56065,1799.8,1799.7,3.2078]
[1745998817289,1.11095,1799.8,1799.7,12.57292765]
[1745998817696,1.11095,1799.8,1799.7,13.68393765]
[1745998817995,3.66839407,1799.9,1799.8,1.11095]
[1745998818184,3.66839407,1799.9,1799.8,11.27747765]
[1745998818590,4.77930407,1799.9,1799.8,10.16652765]
[1745998819594,3.66839407,1799.9,1799.8,11.27747765]
[1745998819794,4.77928407,1799.9,1799.8,11.27747765]
[1745998820893,4.77928407,1799.9,1799.8,10.16652765]
[1745998822190,1.11089,1799.9,1799.8,11.27747765]
[1745998825406,1.11089,1799.9,1799.8,10.16652765]
[1745998825706,1.11095,1799.8,1799.7,3.2078]
[1745998826005,1.11108,1799.6,1799.5,4.0491]
[1745998826390,1.11108,1799.6,1799.5,13.41422765]
[1745998826895,1.11108,1799.6,1799.5,4.0491]
[1745998827095,1.1112,1799.4,1799.3,16.17448333]
[1745998827492,1.1112,1799.4,1799.3,25.53961098]
[1745998827808,1.11118,1799.5,1799.4,1.11119]
[1745998828008,1.11118,1799.5,1799.4,10.47631765]
[1745998829407,1.11118,1799.5,1799.4,9.36512765]
[1745998829607,1.98088,1799.5,1799.4,9.36512765]
[1745998829812,1.98088,1799.5,1799.4,11.00102765]
[1745998830407,1.98088,1799.5,1799.4,1.6359]
[1745998839305,1.11118,1799.5,1799.4,3.5972]
[1745998839603,1.11114,1799.5,1799.4,12.96226765]
[1745998841306,9.76988,1799.8,1799.4,11.85112765]
[1745998841613,1.11112,1799.6,1799.5,6.06412]
[1745998841812,1.11112,1799.6,1799.5,4.31892]
[1745998842010,1.11112,1799.6,1799.5,13.68404765]
[1745998842211,1.11112,1799.6,1799.5,12.57292765]
[1745998842511,1.11112,1799.6,1799.5,9.36512765]
[1745998843513,1.11114,1799.5,1799.4,0.8501]
[1745998843712,1.98154,1799.5,1799.4,10.21522765]
[1745998844413,2.81434,1799.5,1799.4,10.21522765]
[1745998846013,2.81434,1799.5,1799.4,11.32642765]
[1745998846213,2.81434,1799.5,1799.4,10.21522765]
[1745998847615,1.94394,1799.5,1799.4,10.21522765]
[1745998847911,1.94394,1799.5,1799.4,11.32642765]
[1745998848409,1.94394,1799.5,1799.4,10.21522765]
[1745998848807,1.11114,1799.5,1799.4,10.21522765]
[1745998849516,1.11114,1799.5,1799.4,11.32642765]
[1745998850610,1.11114,1799.5,1799.4,10.21522765]
[1745998852417,1.11114,1799.5,1799.4,11.32642765]
[1745998853720,1.11114,1799.5,1799.4,10.21522765]
[1745998854322,1.11114,1799.5,1799.4,11.32642765]
[1745998858429,1.11114,1799.5,1799.4,12.15272765]
[1745998860227,1.11114,1799.5,1799.4,11.04152765]
[1745998860418,1.11114,1799.5,1799.4,12.68222765]
[1745998860720,1.11114,1799.5,1799.4,13.79342765]
[1745998861120,6.44587407,1799.8,1799.4,13.79342765]
[1745998861423,1.11112,1799.6,1799.5,15.32476765]
[1745998861624,1.11112,1799.6,1799.5,11.00582765]
[1745998861820,1.11112,1799.6,1799.5,1.6407]
[1745998862224,1.11112,1799.6,1799.5,2.75184]
[1745998862421,1.11112,1799.6,1799.5,1.6407]
[1745998862620,1.11112,1799.6,1799.5,12.11696765]
[1745998863129,4.77942407,1799.7,1799.6,1.11108]
[1745998863323,4.77942407,1799.7,1799.6,2.69058]
[1745998866029,1.11103,1799.7,1799.6,2.69058]
[1745998866724,6.42808407,1799.8,1799.7,1.11101]
[1745998866926,3.66839407,1799.8,1799.7,15.29623765]
[1745998867423,4.77934407,1799.8,1799.7,56.09623765]
[1745998867624,3.66839407,1799.8,1799.7,57.81793765]
[1745998867822,4.77934407,1799.8,1799.7,57.81793765]
[1745998868933,3.66839407,1799.8,1799.7,57.81793765]
[1745998869733,3.66839407,1799.8,1799.7,62.81793765]
[1745998870033,3.66839407,1799.9,1799.8,1.11095]
[1745998870329,3.66839407,1799.9,1799.8,12.12947765]
[1745998871530,3.66839407,1799.9,1799.8,52.92947765]
[1745998873730,1.11084,1800.0,1799.8,52.92947765]
[1745998873731,1.11084,1800.0,1799.9,1.11089]
[1745998874029,1.11084,1800.0,1799.9,15.39011765]
[1745998874730,1.11084,1800.0,1799.9,14.27922765]
[1745998874934,3.56814,1800.0,1799.9,4.9141]
[1745998875132,3.56814,1800.0,1799.9,3.2078]
[1745998877828,2.77732,1799.9,1799.4,6.8098]
[1745998878033,1.11108,1799.6,1799.5,10.98722765]
[1745998878237,1.11108,1799.6,1799.5,51.78722765]
[1745998879234,2.80918,1799.6,1799.5,1.6221]
[1745998882743,1.11114,1799.5,1799.4,6.8098]
[1745998883039,3.72064,1799.5,1799.4,17.90102765]
[1745998883233,3.72064,1799.5,1799.4,58.70102765]
[1745998885040,5.3875,1799.5,1799.1,3.2078]
[1745998885342,1.11136,1799.2,1799.1,4.8987]
[1745998885640,1.11136,1799.2,1799.1,44.0078]
[1745998885840,1.11136,1799.2,1799.1,54.48429765]
[1745998888441,1.11136,1799.2,1799.1,53.37292765]
[1745998890335,1.93476,1799.2,1799.1,53.37292765]
[1745998891238,1.93476,1799.2,1799.1,54.48430765]
[1745998891545,1.93476,1799.2,1799.1,53.37292765]
[1745998892044,1.93476,1799.2,1799.1,44.0078]
[1745998894134,1.93476,1799.2,1799.1,3.2078]
[1745998895448,1.11145,1799.0,1798.9,3.2078]
[1745998895844,2.80205,1799.0,1798.9,3.2078]
[1745998897950,2.80205,1799.0,1798.7,40.8]
[1745998897951,1.11157,1798.8,1798.7,44.0078]
[1745998898139,1.11157,1798.8,1798.7,12.57292765]
[1745998898543,1.11157,1798.8,1798.7,9.36512765]
[1745998898739,1.94107,1798.8,1798.7,9.36512765]
[1745998899749,1.94107,1798.8,1798.7,11.03392765]
[1745998903155,1.11157,1798.8,1798.7,11.03392765]
[1745998903654,1.11157,1798.8,1798.7,12.14555765]
[1745998904348,1.11157,1798.8,1798.7,11.03392765]
[1745998904554,1.11157,1798.8,1798.7,12.14555765]
[1745998904756,1.11157,1798.8,1798.7,15.35335765]
[1745998905950,1.11154,1798.9,1798.8,1.11153]
[1745998906154,1.1115,1799.0,1798.9,10.47661765]
[1745998906354,1.1115,1799.0,1798.9,11.04452765]
[1745998906656,1.1115,1799.0,1798.9,1.6794]
[1745998908957,1.1115,1799.0,1798.9,0.8344]
[1745998911059,1.1115,1799.0,1798.9,4.0422]
[1745998912861,1.1115,1799.0,1798.9,14.51883765]
[1745998913360,1.1115,1799.0,1798.9,13.40732765]
[1745998913561,1.1115,1799.0,1798.9,14.51883765]
[1745998914061,1.1115,1799.0,1798.9,13.40732765]
[1745998916659,1.1115,1799.0,1798.9,10.19952765]
[1745998917962,1.1115,1799.0,1798.9,0.8344]
[1745998921357,1.1115,1799.0,1798.9,2.4341]
[1745998922867,1.1115,1799.0,1798.9,11.79922765]
[1745998924269,1.1115,1799.0,1798.9,2.4341]
[1745998924470,1.1115,1799.0,1798.9,1.5997]
[1745998928171,2.7755,1799.0,1798.9,1.5997]
[1745998930169,6.44389407,1799.0,1798.9,1.5997]
[1745998930572,1.11157,1798.8,1798.7,6.6259]
[1745998930876,1.11157,1798.8,1798.7,1.7453]
[1745998931176,1.11169,1798.6,1798.5,3.2078]
[1745998931579,1.11169,1798.6,1798.5,12.57292765]
[1745998931967,1.11169,1798.6,1798.5,13.68467765]
[1745998932572,1.11169,1798.6,1798.5,15.34237765]
[1745998932872,1.11167,1798.7,1798.6,1.11167]
[1745998933076,1.6673,1798.9,1798.5,3.2078]
[1745998933077,1.11169,1798.6,1798.5,3.2078]
[1745998933274,1.11169,1798.6,1798.5,4.31955]
[1745998933476,1.11169,1798.6,1798.5,13.68467765]
[1745998934175,4.78000407,1798.8,1798.7,1.11163]
[1745998934376,4.78000407,1798.8,1798.7,13.68455765]
[1745998934574,4.78000407,1798.8,1798.7,12.57292765]
[1745998934777,4.78000407,1798.8,1798.7,13.68455765]
[1745998935075,4.78000407,1798.8,1798.7,12.57292765]
[1745998935377,4.78000407,1798.8,1798.7,9.36512765]
[1745998935675,4.78000407,1798.8,1798.7,10.47675765]
[1745998935868,4.78000407,1798.8,1798.7,9.36512765]
[1745998936480,4.78000407,1798.8,1798.7,10.99712765]
[1745998936777,4.78000407,1798.8,1798.7,12.10875765]
[1745998937170,4.78000407,1798.8,1798.7,10.99712765]
[1745998937676,1.11161,1798.8,1798.7,12.10875765]
[1745998938578,1.11161,1798.8,1798.7,10.99712765]
[1745998940378,1.11161,1798.8,1798.7,12.10875765]
[1745998940577,1.11161,1798.8,1798.7,10.99712765]
[1745998941777,4.78000407,1798.8,1798.7,10.99712765]
[1745998942680,3.66839407,1798.8,1798.7,12.10875765]
[1745998942979,3.66839407,1798.8,1798.7,15.31655765]
[1745998944374,4.77996407,1798.8,1798.7,15.31655765]
[1745998944978,3.66839407,1798.8,1798.7,15.31655765]
[1745998946384,4.77992407,1798.9,1798.8,1.11157]
[1745998946582,4.77992407,1798.9,1798.8,10.47669765]
[1745998947686,4.77992407,1798.9,1798.8,9.36512765]
[1745998948077,4.77992407,1798.9,1798.8,10.47669765]
[1745998948678,3.66839407,1798.9,1798.8,10.47669765]
[1745998949583,4.77990407,1798.9,1798.8,10.47669765]
[1745998949785,4.77990407,1798.9,1798.8,12.10519765]
[1745998950584,1.11151,1798.9,1798.8,12.10519765]
[1745998951686,5.49138951,1799.0,1798.9,1.11151]
[1745998951884,5.49138951,1799.0,1798.9,12.09093765]
[1745998952682,6.60283951,1799.0,1798.9,12.09093765]
[1745998952885,6.60283951,1799.0,1798.9,10.97942765]
[1745998953184,6.60283951,1799.0,1798.9,1.6143]